fUST/lending_fUST_20250210
["ID","MTS","AMOUNT","RATE_DAILY","PERIOD"]
[352532954,1739154650426,-2933.5,0.00012054,2]
[352532955,1739154650435,-9450.34,0.00012054,2]
[352532956,1739154650444,-863.92,0.00012054,2]
[352532957,1739154650454,-628.18,0.00012054,2]
[352532958,1739154650463,-455.69066298,0.00012054,2]
[352532959,1739154650473,-500.0,0.00012054,2]
[352532960,1739154650483,-500.0,0.00012054,2]
[352532961,1739154650493,-977.37,0.00012054,2]
[352532962,1739154650502,-500.0,0.00012054,2]
[352532963,1739154650511,-500.0,0.00012054,2]
[352532964,1739154650521,-500.0,0.00012054,2]
[352532965,1739154650530,-16119.43,0.00012054,2]
[352532966,1739154650540,-1230.52,0.00012054,2]
[352532967,1739154650549,-1007.98,0.00012054,2]
[352532968,1739154650559,-500.0,0.00012054,2]
[352532969,1739154650568,-1072.84,0.00012054,2]
[352532970,1739154650578,-915.56,0.00012054,2]
[352532971,1739154650587,-500.0,0.00012054,2]
[352532972,1739154650596,-500.0,0.00012054,2]
[352532973,1739154650605,-667.11,0.00012054,2]
[352532974,1739154650614,-1779.56,0.00012054,2]
[352532975,1739154650624,-500.0,0.00012054,2]
[352532976,1739154650633,-1585.01,0.00012054,2]
[352532977,1739154650642,-600.36,0.00012054,2]
[352532978,1739154650652,-738.55,0.00012054,2]
[352532979,1739154650661,-500.0,0.00012054,2]
[352532980,1739154650670,-914.55,0.00012054,2]
[352532981,1739154650681,-608.73,0.00012054,2]
[352532982,1739154650690,-619.31,0.00012054,2]
[352532983,1739154650699,-944.55,0.00012054,2]
[352532984,1739154650708,-500.0,0.00012054,2]
[352532985,1739154650717,-500.0,0.00012054,2]
[352532986,1739154650726,-500.0,0.00012054,2]
[352532987,1739154650736,-500.0,0.00012054,2]
[352532988,1739154650745,-505.97,0.00012054,2]
[352532989,1739154650755,-690.74,0.00012054,2]
[352532990,1739154650764,-2210.83,0.00012054,2]
[352532991,1739154650773,-500.0,0.00012054,2]
[352532992,1739154650782,-500.0,0.00012054,2]
[352532993,1739154650791,-2583.67,0.00012054,2]
[352532994,1739154650801,-576.54,0.00012054,2]
[352532995,1739154650810,-551.76,0.00012054,2]
[352532996,1739154650818,-500.0,0.00012054,2]
[352532997,1739154650829,-8059.04,0.00012054,2]
[352532998,1739154650837,-3636.05,0.00012054,2]
[352532999,1739154650847,-1024.25,0.00012054,2]
[352533000,1739154650856,-632.21,0.00012054,2]
[352533001,1739154650865,-702.14,0.00012054,2]
[352533002,1739154650874,-500.0,0.00012179,2]
[352533003,1739154650883,-500.0,0.00012179,2]
[352533004,1739154650892,-501.38581395,0.00012179,2]
[352533005,1739154650901,-500.0,0.00012179,2]
[352533006,1739154650910,-274.94525434,0.00012179,2]
[352533007,1739154650920,-500.56909593,0.00012181,2]
[352533008,1739154650929,-500.0,0.00012181,2]
[352533009,1739154650938,-331.80329013,0.00012188,2]
[352533010,1739154650947,-500.0,0.00012191,2]
[352533011,1739154650956,-685.51,0.00012191,2]
[352533012,1739154650965,-500.0,0.00012191,2]
[352533013,1739154650974,-500.0,0.00012191,2]
[352533014,1739154650983,-196.162575,0.00012191,2]
[352533015,1739154650992,-846.96,0.00012191,2]
[352533016,1739154651001,-382.56462284,0.00012191,2]
[352533017,1739154651010,-500.0,0.00012191,2]
[352533018,1739154651019,-500.0,0.00012191,2]
[352533019,1739154651028,-500.0,0.00012191,2]
[352533020,1739154651037,-500.0,0.00012191,2]
[352533021,1739154651047,-500.0,0.00012191,2]
[352533022,1739154651059,-500.0,0.00012191,2]
[352533023,1739154651068,-1365.72,0.00012191,2]
[352533024,1739154651079,-500.0,0.00012191,2]
[352533025,1739154651088,-500.0,0.00012191,2]
[352533026,1739154651098,-500.0,0.00012191,2]
[352533027,1739154651109,-2711.4,0.00012191,2]
[352533028,1739154651119,-2933.5,0.00012191,2]
[352533029,1739154651130,-1497.47,0.00012191,2]
[352533030,1739154651139,-9450.34,0.00012191,2]
[352533031,1739154651148,-863.92,0.00012191,2]
[352533032,1739154651157,-628.18,0.00012191,2]
[352533033,1739154651167,-598.83660907,0.00012191,2]
[352533034,1739154651176,-500.0,0.00012191,2]
[352533035,1739154651186,-977.37,0.00012191,2]
[352533036,1739154651196,-500.0,0.00012191,2]
[352533037,1739154651205,-500.0,0.00012191,2]
[352533038,1739154651215,-500.0,0.00012191,2]
[352533039,1739154651225,-16119.43,0.00012191,2]
[352533040,1739154651234,-1230.52,0.00012191,2]
[352533041,1739154651244,-1007.98,0.00012191,2]
[352533042,1739154651253,-500.0,0.00012191,2]
[352533043,1739154651262,-1072.84,0.00012191,2]
[352533044,1739154651272,-915.56,0.00012191,2]
[352533045,1739154651281,-500.0,0.00012191,2]
[352533046,1739154651291,-500.0,0.00012191,2]
[352533047,1739154651300,-667.11,0.00012191,2]
[352533048,1739154651309,-1779.56,0.00012191,2]
[352533049,1739154651319,-500.0,0.00012191,2]
[352533050,1739154651329,-1585.01,0.00012191,2]
[352533051,1739154651339,-600.36,0.00012191,2]
[352533052,1739154651348,-738.55,0.00012191,2]
[352533053,1739154651358,-500.0,0.00012191,2]
[352533054,1739154651367,-914.55,0.00012191,2]
[352533055,1739154651376,-608.73,0.00012191,2]
[352533056,1739154651386,-619.31,0.00012191,2]
[352533057,1739154651395,-944.55,0.00012191,2]
[352533058,1739154651405,-500.0,0.00012191,2]
[352533059,1739154651414,-500.0,0.00012191,2]
[352533060,1739154651423,-500.0,0.00012191,2]
[352533061,1739154651433,-500.0,0.00012191,2]
[352533062,1739154651441,-505.97,0.00012191,2]
[352533063,1739154651451,-690.74,0.00012191,2]
[352533064,1739154651460,-2210.83,0.00012191,2]
[352533065,1739154651470,-500.0,0.00012191,2]
[352533066,1739154651479,-500.0,0.00012191,2]
[352533067,1739154651488,-2583.67,0.00012191,2]
[352533068,1739154651497,-576.54,0.00012191,2]
[352533069,1739154651506,-551.76,0.00012191,2]
[352533070,1739154651515,-500.0,0.00012191,2]
[352533071,1739154651524,-8059.04,0.00012191,2]
[352533072,1739154651533,-3636.05,0.00012191,2]
[352533073,1739154651542,-1024.25,0.00012191,2]
[352533074,1739154651551,-632.21,0.00012191,2]
[352533075,1739154651561,-702.14,0.00012191,2]
[352533076,1739154651571,-500.0,0.00012194,2]
[352533077,1739154651581,-156.47861849,0.00012194,2]
[352533078,1739154651590,-151.0,0.000122,2]
[352533079,1739154651600,-500.0,0.00012211,2]
[352533080,1739154651609,-500.0,0.00012211,2]
[352533081,1739154651618,-500.0,0.00012216,2]
[352533082,1739154651697,-515.82766927,0.00012216,2]
[352533083,1739154651706,-626.10567238,0.00012216,2]
[352533084,1739154651716,-500.0,0.00012216,2]
[352533085,1739154651725,-500.0,0.00012216,2]
[352533086,1739154651736,-500.0,0.00012216,2]
[352533087,1739154651746,-500.0,0.00012216,2]
[352533088,1739154651755,-500.0,0.00012216,2]
[352533089,1739154651765,-500.08489898,0.00012216,2]
[352533090,1739154651774,-250.80127485,0.00012219,2]
[352533091,1739154651783,-160.68360129,0.00012242,2]
[352533092,1739154651792,-500.0,0.00012242,2]
[352533093,1739154651801,-500.0,0.00012242,2]
[352533094,1739154651810,-500.86851527,0.00012242,2]
[352533095,1739154651819,-500.0,0.00012242,2]
[352533096,1739154651829,-500.54057919,0.00012242,2]
[352533097,1739154651838,-272.87832129,0.0001227,2]
[352533098,1739154651847,-800.0,0.00012289,2]
[352533099,1739154651857,-506.56848115,0.00012298,2]
[352533100,1739154651866,-500.0,0.00012328,2]
[352533101,1739154651875,-685.51,0.00012328,2]
[352533102,1739154651884,-500.0,0.00012328,2]
[352533103,1739154651893,-500.0,0.00012328,2]
[352533104,1739154651902,-846.96,0.00012328,2]
[352533105,1739154651911,-500.0,0.00012328,2]
[352533106,1739154651920,-500.0,0.00012328,2]
[352533107,1739154651929,-500.0,0.00012328,2]
[352533108,1739154651938,-500.0,0.00012328,2]
[352533109,1739154651947,-500.0,0.00012328,2]
[352533110,1739154651956,-500.0,0.00012328,2]
[352533111,1739154651966,-1365.72,0.00012328,2]
[352533112,1739154651975,-500.0,0.00012328,2]
[352533113,1739154651984,-500.0,0.00012328,2]
[352533114,1739154651993,-500.0,0.00012328,2]
[352533115,1739154652002,-2711.4,0.00012328,2]
[352533116,1739154652012,-1497.47,0.00012328,2]
[352533117,1739154652022,-2933.5,0.00012328,2]
[352533118,1739154652031,-9450.34,0.00012328,2]
[352533119,1739154652040,-863.92,0.00012328,2]
[352533120,1739154652050,-628.18,0.00012328,2]
[352533121,1739154652060,-500.0,0.00012328,2]
[352533122,1739154652070,-977.37,0.00012328,2]
[352533123,1739154652080,-500.0,0.00012328,2]
[352533124,1739154652090,-500.0,0.00012328,2]
[352533125,1739154652099,-500.0,0.00012328,2]
[352533126,1739154652109,-16119.43,0.00012328,2]
[352533127,1739154652119,-1230.52,0.00012328,2]
[352533128,1739154652129,-1007.98,0.00012328,2]
[352533129,1739154652139,-500.0,0.00012328,2]
[352533130,1739154652148,-1072.84,0.00012328,2]
[352533131,1739154652158,-915.56,0.00012328,2]
[352533132,1739154652168,-500.0,0.00012328,2]
[352533133,1739154652177,-500.0,0.00012328,2]
[352533134,1739154652187,-667.11,0.00012328,2]
[352533135,1739154652196,-1779.56,0.00012328,2]
[352533136,1739154652207,-500.0,0.00012328,2]
[352533137,1739154652216,-1585.01,0.00012328,2]
[352533138,1739154652226,-600.36,0.00012328,2]
[352533139,1739154652236,-738.55,0.00012328,2]
[352533140,1739154652246,-500.0,0.00012328,2]
[352533141,1739154652256,-914.55,0.00012328,2]
[352533142,1739154652265,-608.73,0.00012328,2]
[352533143,1739154652274,-619.31,0.00012328,2]
[352533144,1739154652283,-944.55,0.00012328,2]
[352533145,1739154652293,-500.0,0.00012328,2]
[352533146,1739154652302,-500.0,0.00012328,2]
[352533147,1739154652311,-500.0,0.00012328,2]
[352533148,1739154652320,-505.97,0.00012328,2]
[352533149,1739154652330,-690.74,0.00012328,2]
[352533150,1739154652340,-2210.83,0.00012328,2]
[352533151,1739154652349,-241.94063326,0.00012328,2]
[352533152,1739154652359,-500.0,0.00012328,2]
[352533153,1739154652368,-2583.67,0.00012328,2]
[352533154,1739154652377,-576.54,0.00012328,2]
[352533155,1739154652386,-551.76,0.00012328,2]
[352533156,1739154652396,-500.0,0.00012328,2]
[352533157,1739154652405,-8059.04,0.00012328,2]
[352533158,1739154652414,-3636.05,0.00012328,2]
[352533159,1739154652424,-1024.25,0.00012328,2]
[352533160,1739154652433,-632.21,0.00012328,2]
[352533161,1739154652442,-702.14,0.00012328,2]
[352533162,1739154652451,-500.0,0.00012392,2]
[352533163,1739154652461,-151.0,0.000124,2]
[352533164,1739154652470,-1000.0,0.00012453,2]
[352533165,1739154652479,-500.0,0.00012465,2]
[352533166,1739154652489,-685.51,0.00012465,2]
[352533167,1739154652498,-500.0,0.00012465,2]
[352533168,1739154652507,-500.0,0.00012465,2]
[352533169,1739154652517,-846.96,0.00012465,2]
[352533170,1739154652526,-500.0,0.00012465,2]
[352533171,1739154652535,-500.0,0.00012465,2]
[352533172,1739154652544,-500.0,0.00012465,2]
[352533173,1739154652553,-500.0,0.00012465,2]
[352533174,1739154652563,-500.0,0.00012465,2]
[352533175,1739154652574,-500.0,0.00012465,2]
[352533176,1739154652585,-1365.72,0.00012465,2]
[352533177,1739154652594,-500.0,0.00012465,2]
[352533178,1739154652605,-500.0,0.00012465,2]
[352533179,1739154652615,-443.55379571,0.00012465,2]
[352533180,1739154652624,-2711.4,0.00012465,2]
[352533181,1739154652633,-1497.47,0.00012465,2]
[352533182,1739154652643,-2933.5,0.00012465,2]
[352533183,1739154652652,-9450.34,0.00012465,2]
[352533184,1739154652662,-863.92,0.00012465,2]
[352533185,1739154652671,-628.18,0.00012465,2]
[352533186,1739154652680,-500.0,0.00012465,2]
[352533187,1739154652690,-977.37,0.00012465,2]
[352533188,1739154652699,-500.0,0.00012465,2]
[352533189,1739154652708,-623.44057273,0.00012465,2]
[352533190,1739154652718,-500.0,0.00012465,2]
[352533191,1739154652727,-16119.43,0.00012465,2]
[352533192,1739154652737,-1230.52,0.00012465,2]
[352533193,1739154652747,-1007.98,0.00012465,2]
[352533194,1739154652755,-500.0,0.00012465,2]
[352533195,1739154652765,-1072.84,0.00012465,2]
[352533196,1739154652775,-915.56,0.00012465,2]
[352533197,1739154652784,-500.0,0.00012465,2]
[352533198,1739154652793,-500.0,0.00012465,2]
[352533199,1739154652802,-667.11,0.00012465,2]
[352533200,1739154652812,-1779.56,0.00012465,2]
[352533201,1739154652821,-500.0,0.00012465,2]
[352533202,1739154652832,-1585.01,0.00012465,2]
[352533203,1739154652841,-600.36,0.00012465,2]
[352533204,1739154652851,-738.55,0.00012465,2]
[352533205,1739154652860,-641.17702275,0.00012465,2]
[352533206,1739154652870,-914.55,0.00012465,2]
[352533207,1739154652879,-608.73,0.00012465,2]
[352533208,1739154652888,-619.31,0.00012465,2]
[352533209,1739154652898,-944.55,0.00012465,2]
[352533210,1739154652907,-530.58386184,0.00012465,2]
[352533211,1739154652916,-500.0,0.00012465,2]
[352533212,1739154652925,-505.97,0.00012465,2]
[352533213,1739154652935,-690.74,0.00012465,2]
[352533214,1739154652944,-2210.83,0.00012465,2]
[352533215,1739154652953,-500.0,0.00012465,2]
[352533216,1739154652963,-2583.67,0.00012465,2]
[352533217,1739154652971,-576.54,0.00012465,2]
[352533218,1739154652981,-551.76,0.00012465,2]
[352533219,1739154652990,-500.0,0.00012465,2]
[352533220,1739154652999,-8059.04,0.00012465,2]
[352533221,1739154653008,-3636.05,0.00012465,2]
[352533222,1739154653017,-1024.25,0.00012465,2]
[352533223,1739154653026,-632.21,0.00012465,2]
[352533224,1739154653035,-702.14,0.00012465,2]
[352533225,1739154653045,-4430.89038492,0.000125,2]
[352533226,1739154653058,-151.0,0.000126,2]
[352533227,1739154653067,-500.0,0.00012602,2]
[352533228,1739154653076,-685.51,0.00012602,2]
[352533229,1739154653087,-500.0,0.00012602,2]
[352533230,1739154653097,-500.0,0.00012602,2]
[352533231,1739154653106,-846.96,0.00012602,2]
[352533232,1739154653115,-500.0,0.00012602,2]
[352533233,1739154653124,-500.0,0.00012602,2]
[352533234,1739154653134,-500.0,0.00012602,2]
[352533235,1739154653143,-500.0,0.00012602,2]
[352533236,1739154653153,-307.49907979,0.00012602,2]
[352533237,1739154653163,-500.0,0.00012602,2]
[352533238,1739154653173,-1365.72,0.00012602,2]
[352533239,1739154653181,-500.0,0.00012602,2]
[352533240,1739154653259,-500.0,0.00012602,2]
[352533241,1739154653271,-2711.4,0.00012602,2]
[352533242,1739154653281,-1497.47,0.00012602,2]
[352533243,1739154653291,-2933.5,0.00012602,2]
[352533244,1739154653301,-9450.34,0.00012602,2]
[352533245,1739154653310,-863.92,0.00012602,2]
[352533246,1739154653320,-628.18,0.00012602,2]
[352533247,1739154653332,-500.0,0.00012602,2]
[352533248,1739154653341,-977.37,0.00012602,2]
[352533249,1739154653350,-500.0,0.00012602,2]
[352533250,1739154653360,-500.0,0.00012602,2]
[352533251,1739154653370,-16119.43,0.00012602,2]
[352533252,1739154653379,-1230.52,0.00012602,2]
[352533253,1739154653390,-1007.98,0.00012602,2]
[352533254,1739154653399,-435.95167494,0.00012602,2]
[352533255,1739154653408,-1072.84,0.00012602,2]
[352533256,1739154653417,-915.56,0.00012602,2]
[352533257,1739154653427,-500.0,0.00012602,2]
[352533258,1739154653436,-500.0,0.00012602,2]
[352533259,1739154653446,-667.11,0.00012602,2]
[352533260,1739154653456,-1779.56,0.00012602,2]
[352533261,1739154653466,-500.0,0.00012602,2]
[352533262,1739154653475,-1585.01,0.00012602,2]
[352533263,1739154653485,-600.36,0.00012602,2]
[352533264,1739154653496,-738.55,0.00012602,2]
[352533265,1739154653506,-914.55,0.00012602,2]
[352533266,1739154653515,-608.73,0.00012602,2]
[352533267,1739154653525,-619.31,0.00012602,2]
[352533268,1739154653535,-944.55,0.00012602,2]
[352533269,1739154653544,-500.0,0.00012602,2]
[352533270,1739154653553,-505.97,0.00012602,2]
[352533271,1739154653563,-690.74,0.00012602,2]
[352533272,1739154653572,-2210.83,0.00012602,2]
[352533273,1739154653582,-500.0,0.00012602,2]
[352533274,1739154653591,-2583.67,0.00012602,2]
[352533275,1739154653600,-576.54,0.00012602,2]
[352533276,1739154653609,-551.76,0.00012602,2]
[352533277,1739154653618,-500.0,0.00012602,2]
[352533278,1739154653628,-8059.04,0.00012602,2]
[352533279,1739154653637,-3636.05,0.00012602,2]
[352533280,1739154653646,-1024.25,0.00012602,2]
[352533281,1739154653655,-632.21,0.00012602,2]
[352533282,1739154653664,-550.04250531,0.00012639,2]
[352533283,1739154653674,-502.56975432,0.00012727,2]
[352533284,1739154653683,-1500.0,0.00012727,2]
[352533285,1739154653693,-410.28269195,0.00012727,2]
[352533286,1739154653702,-1007.88802541,0.00012729,2]
[352533287,1739154653711,-9026.06837269,0.00012739,5]
[352533288,1739154653720,-500.0,0.00012739,2]
[352533289,1739154653729,-685.51,0.00012739,2]
[352533290,1739154653738,-500.0,0.00012739,2]
[352533291,1739154653747,-500.0,0.00012739,2]
[352533292,1739154653757,-846.96,0.00012739,2]
[352533293,1739154653766,-402.73822142,0.00012739,2]
[352533294,1739154653776,-500.0,0.00012739,2]
[352533295,1739154653785,-500.0,0.00012739,2]
[352533296,1739154653795,-439.06556329,0.00012739,2]
[352533297,1739154653804,-500.0,0.00012739,2]
[352533298,1739154653814,-1365.72,0.00012739,2]
[352533299,1739154653823,-500.0,0.00012739,2]
[352533300,1739154653834,-534.61963216,0.00012739,2]
[352533301,1739154653843,-2711.4,0.00012739,2]
[352533302,1739154653852,-2933.5,0.00012739,2]
[352533303,1739154653862,-1497.47,0.00012739,2]
[352533304,1739154653871,-9450.34,0.00012739,2]
[352533305,1739154653881,-863.92,0.00012739,2]
[352533306,1739154653890,-628.18,0.00012739,2]
[352533307,1739154653899,-500.0,0.00012739,2]
[352533308,1739154653909,-977.37,0.00012739,2]
[352533309,1739154653917,-500.0,0.00012739,2]
[352533310,1739154653927,-500.0,0.00012739,2]
[352533311,1739154653936,-16119.43,0.00012739,2]
[352533312,1739154653945,-1230.52,0.00012739,2]
[352533313,1739154653954,-1007.98,0.00012739,2]
[352533314,1739154653963,-1072.84,0.00012739,2]
[352533315,1739154653972,-915.56,0.00012739,2]
[352533316,1739154653982,-500.0,0.00012739,2]
[352533317,1739154653992,-500.0,0.00012739,2]
[352533318,1739154654001,-667.11,0.00012739,2]
[352533319,1739154654010,-1779.56,0.00012739,2]
[352533320,1739154654019,-500.0,0.00012739,2]
[352533321,1739154654029,-1585.01,0.00012739,2]
[352533322,1739154654038,-600.36,0.00012739,2]
[352533323,1739154654048,-738.55,0.00012739,2]
[352533324,1739154654060,-914.55,0.00012739,2]
[352533325,1739154654070,-608.73,0.00012739,2]
[352533326,1739154654080,-619.31,0.00012739,2]
[352533327,1739154654090,-944.55,0.00012739,2]
[352533328,1739154654100,-500.0,0.00012739,2]
[352533329,1739154654109,-505.97,0.00012739,2]
[352533330,1739154654118,-690.74,0.00012739,2]
[352533331,1739154654129,-2210.83,0.00012739,2]
[352533332,1739154654138,-500.0,0.00012739,2]
[352533333,1739154654148,-2583.67,0.00012739,2]
[352533334,1739154654157,-576.54,0.00012739,2]
[352533335,1739154654167,-551.76,0.00012739,2]
[352533336,1739154654177,-500.0,0.00012739,2]
[352533337,1739154654186,-8059.04,0.00012739,2]
[352533338,1739154654196,-3636.05,0.00012739,2]
[352533339,1739154654205,-1024.25,0.00012739,2]
[352533340,1739154654215,-1000.63881708,0.00012742,2]
[352533341,1739154654224,-504.93731554,0.00012759,2]
[352533342,1739154654234,-251.70775413,0.00012759,2]
[352533343,1739154654243,-1000.0,0.00012764,2]
[352533344,1739154654253,-502.27251224,0.00012764,2]
[352533345,1739154654262,-500.59239481,0.00012764,2]
[352533346,1739154654271,-527.43655362,0.00012764,2]
[352533347,1739154654281,-1000.0,0.00012764,2]
[352533348,1739154654290,-1000.0,0.00012764,2]
[352533349,1739154654300,-17210.58206806,0.00012766,5]
[352533350,1739154654412,-25078.23018707,0.00012766,5]
[352533351,1739154654421,-1000.0,0.0001279,2]
[352533352,1739154654431,-1000.0,0.0001279,2]
[352533353,1739154654440,-1000.0,0.0001279,2]
[352533354,1739154654450,-151.0,0.000128,2]
[352533355,1739154654459,-500.0,0.00012876,2]
[352533356,1739154654467,-685.51,0.00012876,2]
[352533357,1739154654476,-500.0,0.00012876,2]
[352533358,1739154654485,-500.0,0.00012876,2]
[352533359,1739154654495,-846.96,0.00012876,2]
[352533360,1739154654503,-500.0,0.00012876,2]
[352533361,1739154654513,-500.0,0.00012876,2]
[352533362,1739154654523,-500.0,0.00012876,2]
[352533363,1739154654532,-1365.72,0.00012876,2]
[352533364,1739154654542,-500.0,0.00012876,2]
[352533365,1739154654619,-2711.4,0.00012876,2]
[352533366,1739154654629,-2933.5,0.00012876,2]
[352533367,1739154654638,-1497.47,0.00012876,2]
[352533368,1739154654647,-9450.34,0.00012876,2]
[352533369,1739154654656,-863.92,0.00012876,2]
[352533370,1739154654665,-628.18,0.00012876,2]
[352533371,1739154654674,-500.0,0.00012876,2]
[352533372,1739154654683,-977.37,0.00012876,2]
[352533373,1739154654692,-500.0,0.00012876,2]
[352533374,1739154654703,-500.0,0.00012876,2]
[352533375,1739154654712,-16119.43,0.00012876,2]
[352533376,1739154654722,-1230.52,0.00012876,2]
[352533377,1739154654731,-1007.98,0.00012876,2]
[352533378,1739154654741,-1072.84,0.00012876,2]
[352533379,1739154654750,-915.56,0.00012876,2]
[352533380,1739154654760,-500.0,0.00012876,2]
[352533381,1739154654769,-500.0,0.00012876,2]
[352533382,1739154654779,-667.11,0.00012876,2]
[352533383,1739154654788,-1779.56,0.00012876,2]
[352533384,1739154654798,-500.0,0.00012876,2]
[352533385,1739154654807,-1585.01,0.00012876,2]
[352533386,1739154654817,-600.36,0.00012876,2]
[352533387,1739154654827,-738.55,0.00012876,2]
[352533388,1739154654837,-914.55,0.00012876,2]
[352533389,1739154654846,-608.73,0.00012876,2]
[352533390,1739154654855,-619.31,0.00012876,2]
[352533391,1739154654865,-944.55,0.00012876,2]
[352533392,1739154654874,-500.0,0.00012876,2]
[352533393,1739154654883,-505.97,0.00012876,2]
[352533394,1739154654893,-690.74,0.00012876,2]
[352533395,1739154654902,-2210.83,0.00012876,2]
[352533396,1739154654911,-500.0,0.00012876,2]
[352533397,1739154654920,-2583.67,0.00012876,2]
[352533398,1739154654929,-576.54,0.00012876,2]
[352533399,1739154654938,-551.76,0.00012876,2]
[352533400,1739154654948,-500.0,0.00012876,2]
[352533401,1739154654958,-8059.04,0.00012876,2]
[352533402,1739154654967,-3636.05,0.00012876,2]
[352533403,1739154654977,-1024.25,0.00012876,2]
[352533404,1739154654987,-2252.40227406,0.000129,2]
[352533405,1739154654996,-2252.40227405,0.000129,2]
[352533406,1739154655006,-500.0,0.0001294,2]
[352533407,1739154655015,-7438.69753278,0.00013,2]
[352533408,1739154655024,-2000.0,0.00013001,2]
[352533409,1739154655034,-500.0,0.00013013,2]
[352533410,1739154655044,-685.51,0.00013013,2]
[352533411,1739154655056,-500.0,0.00013013,2]
[352533412,1739154655066,-500.0,0.00013013,2]
[352533413,1739154655075,-846.96,0.00013013,2]
[352533414,1739154655086,-500.0,0.00013013,2]
[352533415,1739154655095,-500.0,0.00013013,2]
[352533416,1739154655105,-500.0,0.00013013,2]
[352533417,1739154655115,-1365.72,0.00013013,2]
[352533418,1739154655126,-500.0,0.00013013,2]
[352533419,1739154655135,-2711.4,0.00013013,2]
[352533420,1739154655145,-2933.5,0.00013013,2]
[352533421,1739154655155,-1497.47,0.00013013,2]
[352533422,1739154655164,-9450.34,0.00013013,2]
[352533423,1739154655173,-863.92,0.00013013,2]
[352533424,1739154655183,-628.18,0.00013013,2]
[352533425,1739154655192,-500.0,0.00013013,2]
[352533426,1739154655202,-977.37,0.00013013,2]
[352533427,1739154655211,-500.0,0.00013013,2]
[352533428,1739154655221,-500.0,0.00013013,2]
[352533429,1739154655230,-16119.43,0.00013013,2]
[352533430,1739154655240,-1230.52,0.00013013,2]
[352533431,1739154655250,-1007.98,0.00013013,2]
[352533432,1739154655260,-1072.84,0.00013013,2]
[352533433,1739154655270,-915.56,0.00013013,2]
[352533434,1739154655280,-500.0,0.00013013,2]
[352533435,1739154655290,-500.0,0.00013013,2]
[352533436,1739154655300,-667.11,0.00013013,2]
[352533437,1739154655309,-1779.56,0.00013013,2]
[352533438,1739154655319,-500.0,0.00013013,2]
[352533439,1739154655329,-1585.01,0.00013013,2]
[352533440,1739154655339,-600.36,0.00013013,2]
[352533441,1739154655348,-738.55,0.00013013,2]
[352533442,1739154655358,-914.55,0.00013013,2]
[352533443,1739154655367,-608.73,0.00013013,2]
[352533444,1739154655377,-619.31,0.00013013,2]
[352533445,1739154655387,-944.55,0.00013013,2]
[352533446,1739154655397,-500.0,0.00013013,2]
[352533447,1739154655407,-505.97,0.00013013,2]
[352533448,1739154655417,-690.74,0.00013013,2]
[352533449,1739154655426,-2210.83,0.00013013,2]
[352533450,1739154655436,-500.0,0.00013013,2]
[352533451,1739154655445,-2583.67,0.00013013,2]
[352533452,1739154655455,-576.54,0.00013013,2]
[352533453,1739154655465,-551.76,0.00013013,2]